bitfinex-derivatives/quotes_SOLF0:USTF0_20250416
["timestamp","ask_amount","ask_price","bid_price","bid_amount"]
[1744825391867,615.11499998,126.97,126.84,52.29399998]
[1744825392159,566.94,126.97,126.86,48.17499998]
[1744825392462,0.05002478,126.92,126.89,0.05727633]
[1744825392665,0.05002478,126.92,126.89,7.93827633]
[1744825392865,0.05002478,126.92,126.89,0.05727633]
[1744825393064,4.3019,127.0,126.9,96.34999996]
[1744825393360,53.92,127.03,126.93,48.17499998]
[1744825393563,53.92,127.04,126.95,48.17499998]
[1744825393764,53.92,127.04,126.97,48.17499998]
[1744825394059,53.92,127.09,126.99,48.23510973]
[1744825394266,61.7891,127.09,127.05,7.8711]
[1744825394468,53.92,127.09,127.01,48.17499998]
[1744825394655,4.1304,127.12,127.03,48.17499998]
[1744825394861,53.92,127.14,127.05,48.17499998]
[1744825395062,53.92,127.14,127.04,4.376]
[1744825395267,0.05896211,127.11,127.08,0.05330752]
[1744825396366,48.17499998,127.1,126.99,4.376]
[1744825396561,48.17499998,127.1,126.99,52.55099998]
[1744825396866,7.8696,127.09,127.04,7.8718]
[1744825397066,102.07499998,127.08,126.99,4.376]
[1744825397258,48.17499998,127.06,126.99,4.376]
[1744825397463,53.9,127.07,127.02,0.05936173]
[1744825397665,0.05528608,127.04,127.02,0.05936173]
[1744825398071,0.05528608,127.04,127.03,7.8726]
[1744825398466,0.05528608,127.04,127.02,0.05936173]
[1744825398668,0.05528608,127.04,127.02,7.93226173]
[1744825398866,48.23028606,127.04,126.91,48.17499998]
[1744825399169,48.17499998,127.0,126.9,44.48318798]
[1744825399372,102.07499998,127.0,126.9,44.48318798]
[1744825399673,53.9,127.0,126.91,48.17499998]
[1744825399969,0.05787419,126.97,126.94,0.05622338]
[1744825401967,52.52,127.02,126.95,48.17499998]
[1744825402173,100.69499998,127.02,126.91,48.17499998]
[1744825402370,100.69499998,127.02,126.97,7.8764]
[1744825402772,7.8742,127.01,126.98,7.8758]
[1744825402968,0.05146443,127.01,126.98,0.05837031]
[1744825403369,52.52,127.07,126.99,48.17499998]
[1744825403573,52.52,127.07,126.97,48.17499998]
[1744825403776,52.52,127.07,126.99,48.17499998]
[1744825403974,3.9939,127.1,127.01,48.17499998]
[1744825404180,52.52,127.13,127.07,48.17499998]
[1744825404372,52.52,127.13,127.03,48.17499998]
[1744825404575,0.05631057,127.11,127.09,0.06056663]
[1744825404778,0.05631057,127.11,127.09,0.05354653]
[1744825404965,7.8684,127.1,127.09,0.05354653]
[1744825405169,56.09131055,127.11,126.95,52.52]
[1744825405473,48.17499998,127.03,126.91,48.17499998]
[1744825405776,48.17499998,127.08,126.93,48.17499998]
[1744825405777,52.52,127.02,126.93,48.17499998]
[1744825405968,52.52,127.03,126.95,48.17499998]
[1744825406169,0.05410029,127.0,126.98,0.05723854]
[1744825406369,3.32551416,127.05,126.98,0.05292936]
[1744825406573,3.32551416,127.05,127.0,0.05971576]
[1744825406773,667.61499998,127.06,127.01,0.05014554]
[1744825406975,0.05463981,127.04,127.02,0.05662871]
[1744825407274,0.05463981,127.04,127.02,0.05097657]
[1744825407481,0.05463981,127.04,127.03,7.8727]
[1744825408572,0.05463981,127.04,127.02,0.05097657]
[1744825408764,56.10963979,127.04,126.91,4.1045]
[1744825409075,48.17499998,126.99,126.91,4.1045]
[1744825409279,52.24339998,127.03,126.91,4.1045]
[1744825409577,3.32936384,127.02,126.91,4.1045]
[1744825409777,0.05496928,126.98,126.96,0.05415344]
[1744825409969,566.94,127.04,126.96,0.05519131]
[1744825410273,52.52,127.06,127.0,48.17499998]
[1744825410669,7.8725,127.04,127.0,7.8743]
[1744825410969,52.52,127.06,126.98,48.17499998]
[1744825411170,0.05683177,127.03,127.01,0.06050324]
[1744825412375,0.05683177,127.03,127.01,7.93420324]
[1744825412570,0.05683177,127.03,127.01,0.06050324]
[1744825413876,48.23183175,127.03,126.91,104.79949998]
[1744825414070,48.17499998,127.05,126.99,7.875]
[1744825414268,3.336201,127.04,126.93,48.17499998]
[1744825414575,3.336201,127.04,126.95,48.17499998]
[1744825414778,11.208701,127.04,126.95,48.17499998]
[1744825414983,0.04999274,127.01,126.98,0.05873908]
[1744825415280,0.04999274,127.01,127.0,7.8746]
[1744825415979,4.3985,127.09,126.99,48.17499998]
[1744825416182,3.33855603,127.08,127.01,48.17499998]
[1744825416374,56.744,127.1,127.03,48.17499998]
[1744825416578,56.744,127.1,127.01,48.17499998]
[1744825416883,48.17499998,127.07,126.97,52.52]
[1744825417074,48.17499998,127.05,126.94,48.17499998]
[1744825417272,7.8735,127.02,126.94,48.17499998]
[1744825417474,52.52,127.04,126.94,48.17499998]
[1744825417982,52.52,127.04,126.96,48.17499998]
[1744825418182,52.52,127.04,126.99,0.0566759]
[1744825418372,0.05898095,127.03,126.99,0.0566759]
[1744825418580,0.05898095,127.03,126.99,7.9315759]
[1744825418784,0.05898095,127.03,126.99,0.0566759]
[1744825419083,0.05898095,127.03,127.0,7.8745]
[1744825419281,0.05898095,127.03,126.99,0.0566759]
[1744825419477,7.93208095,127.03,126.99,0.0566759]
[1744825419673,0.05898095,127.03,126.99,0.0566759]
[1744825420079,48.17499998,127.0,126.92,8.7062]
[1744825420574,48.17499998,126.98,126.92,4.3853]
[1744825420777,48.17499998,126.98,126.94,7.8778]
[1744825420981,7.8768,126.97,126.94,7.8778]
[1744825421185,7.92977992,126.97,126.94,7.92895402]
[1744825421381,0.05297992,126.97,126.94,0.05115402]
[1744825421879,0.05297992,126.97,126.96,7.8771]
[1744825422085,627.3333,127.03,126.95,48.17499998]
[1744825422285,566.94,127.03,126.95,48.17499998]
[1744825422487,52.52,127.05,126.97,48.17499998]
[1744825422984,52.52,127.05,126.99,48.17499998]
[1744825423182,0.04970531,127.02,127.0,0.05728788]
[1744825424086,0.04970531,127.02,127.0,7.93148788]
[1744825424481,0.04970531,127.02,127.0,0.05728788]
[1744825424787,0.04970531,127.02,127.01,7.874]
[1744825424986,52.52,127.09,127.0,0.05728788]
[1744825425184,3.3481941,127.08,126.97,48.17499998]
[1744825425384,48.17499998,127.06,126.95,4.0616]
[1744825425580,3.3481941,127.05,126.95,4.0616]
[1744825425790,7.8734,127.02,126.99,7.8748]
[1744825425986,7.92625698,127.02,126.99,7.93180063]
[1744825426287,0.05285698,127.02,126.99,0.05700063]
[1744825426790,0.05285698,127.02,127.0,7.8743]
[1744825426986,0.05285698,127.02,126.99,0.05700063]
[1744825427184,0.05285698,127.02,126.99,48.23200061]
[1744825427386,0.05285698,127.02,127.01,7.874]
[1744825427787,0.05285698,127.02,126.99,0.05700063]
[1744825428488,7.92645698,127.02,126.99,0.05700063]
[1744825428690,0.05285698,127.02,126.99,0.05700063]
[1744825428885,100.74785696,127.02,126.99,0.05700063]
[1744825429085,3.35156644,127.01,126.99,0.05700063]
[1744825429490,52.57285698,127.02,126.99,0.05700063]
[1744825429891,52.57285698,127.02,127.0,7.8743]
[1744825430189,0.05285698,127.02,126.99,0.05700063]
[1744825430487,3.35290359,127.07,126.99,48.23200061]
[1744825430677,11.22360359,127.07,126.99,48.17499998]
[1744825430882,3.35290359,127.06,127.04,7.8718]
[1744825431080,52.52,127.09,126.99,48.17499998]
[1744825431278,11.22364457,127.08,126.99,48.17499998]
[1744825431480,3.35394457,127.07,127.05,7.8712]
[1744825431685,7.8709,127.06,127.05,0.05697364]
[1744825431886,51.52894455,127.06,126.95,48.17499998]
[1744825432081,3.35394457,127.05,126.93,100.69499998]
[1744825432586,48.17499998,127.04,126.99,7.8749]
[1744825432781,48.17499998,127.04,126.93,100.69499998]
[1744825432782,3.35394457,127.03,126.93,100.69499998]
[1744825432987,0.05301693,127.0,126.99,7.8749]
[1744825433290,0.05301693,127.0,126.98,0.05528135]
[1744825433489,48.22801691,127.0,126.93,7.8786]
[1744825433793,48.17499998,126.97,126.88,37.03303212]
[1744825433990,48.17499998,126.95,126.88,37.03303212]
[1744825434190,3.3496405,126.94,126.88,37.03303212]
[1744825434392,48.17499998,126.93,126.88,37.03303212]
[1744825434592,48.17499998,126.91,126.89,0.05963221]
[1744825434790,7.8813,126.9,126.89,0.05963221]
[1744825434993,55.6677881,126.9,126.85,109.22675722]
[1744825435288,3.3477881,126.89,126.81,48.17499998]
[1744825435492,3.3477881,126.89,126.83,4.3552]
[1744825435684,48.17499998,126.87,126.79,4.0842]
[1744825435885,7.8823,126.88,126.79,8.3987]
[1744825436095,0.05142423,126.84,126.83,7.8852]
[1744825436395,0.05704007,126.85,126.82,0.05151676]
[1744825437994,60.2012,126.9,126.82,0.05151676]
[1744825438182,52.34,126.94,126.85,48.17499998]
[1744825438386,7.8792,126.93,126.85,48.17499998]
[1744825438593,52.34,126.94,126.85,48.17499998]
[1744825438795,3.34214019,126.93,126.87,48.17499998]
[1744825438986,52.34,126.97,126.87,48.17499998]
[1744825439189,0.05354977,126.91,126.89,0.05745145]
[1744825439389,0.05818052,126.91,126.89,0.05513706]
[1744825440791,0.05818052,126.91,126.86,48.17499998]
[1744825441200,619.58,126.99,126.88,48.17499998]
[1744825441495,3.34371382,126.98,126.94,7.878]
[1744825441695,48.17499998,126.96,126.82,52.34]
[1744825441888,48.17499998,126.94,126.84,48.17499998]
[1744825442292,619.58,126.99,126.88,48.225599]
[1744825442488,7.8776,126.96,126.92,7.8792]
[1744825442689,619.58,126.99,126.88,48.17499998]
[1744825442892,3.34375207,126.98,126.94,7.8781]
[1744825443290,0.06016855,126.97,126.95,0.05267073]
[1744825443496,11.22085207,126.96,126.95,0.05558066]
[1744825443695,0.06016855,126.97,126.95,0.05558066]
[1744825443891,0.06016855,126.97,126.96,7.8771]
[1744825444094,52.34,127.05,126.95,0.05558066]
[1744825444290,3.34520974,127.04,126.96,48.17499998]
[1744825444691,51.52020972,127.04,126.95,4.0549]
[1744825444899,3.34520974,127.03,126.95,4.0549]
[1744825445097,0.05690942,127.0,126.98,7.93174869]
[1744825445498,0.05690942,127.0,126.99,7.8752]
[1744825445694,3.3442423,127.04,126.98,48.23124867]
[1744825446294,48.17499998,127.04,126.98,0.05624869]
[1744825446493,7.8737,127.02,126.98,0.05624869]
[1744825446702,48.17499998,127.08,126.98,0.05624869]
[1744825446892,3.34467976,127.07,127.02,0.05115663]
[1744825447092,0.05129333,127.04,127.02,0.05115663]
[1744825448007,52.32,127.1,127.02,48.22615661]
[1744825448201,52.32,127.1,127.06,7.8704]
[1744825448397,52.32,127.14,127.06,48.17499998]
[1744825448601,161.88756988,127.19,127.08,48.17499998]
[1744825448797,3.34875968,127.17,127.1,48.17499998]
[1744825449002,0.05155492,127.15,127.12,48.22598353]
[1744825449194,7.8662,127.14,127.12,0.05407059]
[1744825449498,0.05326874,127.15,127.12,0.05407059]
[1744825449702,0.05326874,127.15,127.14,7.8659]
[1744825450205,0.05326874,127.15,127.12,7.92107059]
[1744825450406,0.05326874,127.15,127.12,0.05407059]
[1744825450805,7.91896874,127.15,127.12,0.05407059]
[1744825451007,0.05326874,127.15,127.12,0.05407059]
[1744825451504,0.05326874,127.15,127.12,48.22907057]
[1744825451909,52.59249998,127.24,127.14,48.17499998]
[1744825452107,3.34498962,127.23,127.14,48.17499998]
[1744825452309,48.17499998,127.2,127.1,48.17499998]
[1744825452501,55.63959729,127.19,127.08,56.56319998]
[1744825452706,7.8651,127.16,127.08,56.56319998]
[1744825452906,0.05947728,127.13,127.11,0.05300835]
[1744825453208,7.8696,127.08,127.03,7.8723]
[1744825453404,48.17499998,127.1,127.0,4.3074]
[1744825453604,52.28,127.12,127.03,48.17499998]
[1744825453810,0.099,127.17,127.05,48.17499998]
[1744825453811,100.45499998,127.16,127.05,48.17499998]
[1744825454013,3.33818309,127.15,127.07,48.17499998]
[1744825454209,0.05638456,127.12,127.1,0.05635994]
[1744825454410,7.8642,127.17,127.12,7.8671]
[1744825454602,100.45499998,127.2,127.09,48.17499998]
[1744825454808,7.866,127.14,127.1,7.8682]
[1744825455004,51.51218343,127.18,127.1,7.8682]
[1744825455005,48.17499998,127.18,127.1,7.8682]
[1744825455206,3.33691354,127.17,127.09,48.17499998]
[1744825455401,0.05405604,127.14,127.12,0.05850511]
[1744825455608,0.05922504,127.14,127.12,0.05117982]
[1744825458714,52.28,127.2,127.12,0.05117982]
[1744825459007,52.28,127.2,127.11,48.17499998]
[1744825459008,7.8622,127.2,127.16,7.8642]
[1744825459213,48.17499998,127.22,127.11,48.17499998]
[1744825459604,7.8632,127.19,127.12,4.0643]
[1744825459807,0.05181822,127.18,127.15,0.05923904]
[1744825460008,0.05181822,127.18,127.15,48.23194357]
[1744825460213,566.66,127.26,127.17,48.17499998]
[1744825460907,566.66,127.26,127.2,7.8618]
[1744825461113,48.17499998,127.24,127.13,4.2217]
[1744825461614,48.17499998,127.22,127.13,4.2217]
[1744825461915,48.17499998,127.2,127.13,4.2217]
[1744825462121,48.17499998,127.16,127.05,48.17499998]
[1744825462312,0.05994525,127.12,127.09,0.0587322]
[1744825462516,51.12,127.2,127.09,48.23373218]
[1744825462712,51.12,127.2,127.11,48.17499998]
[1744825462915,51.12,127.2,127.12,4.0553]
[1744825463115,7.863,127.19,127.15,7.8649]
[1744825463319,51.12,127.2,127.12,4.0553]
[1744825463515,7.8639,127.18,127.14,7.8655]
[1744825463719,0.05316528,127.17,127.15,0.0564496]
[1744825466010,0.05316528,127.17,127.15,7.9214496]
[1744825466214,0.05316528,127.17,127.15,0.0564496]
[1744825467519,0.05316528,127.17,127.16,7.8647]
[1744825467822,7.8647,127.16,127.15,0.0564496]
[1744825468014,0.05316528,127.17,127.07,8.4327]
[1744825468317,48.17499998,127.17,127.07,8.4327]
[1744825468519,48.17499998,127.17,127.13,7.8665]
[1744825468818,99.29499998,127.2,127.08,48.17499998]
[1744825469116,0.05642311,127.16,127.14,0.05225286]
[1744825469322,48.23142309,127.16,127.07,4.3982]
[1744825469517,56.04259998,127.12,127.08,7.8693]
[1744825469716,7.8676,127.12,127.06,4.0808]
[1744825469916,99.27499998,127.14,127.06,4.0808]
[1744825470219,7.8674,127.12,127.08,7.8692]
[1744825470408,0.05286035,127.11,127.09,0.05665568]
[1744825470610,7.92106035,127.11,127.09,0.05665568]
[1744825470917,0.05286035,127.11,127.09,0.05665568]
[1744825471226,7.8684,127.1,127.09,0.05665568]
[1744825471518,0.05286035,127.11,127.09,0.05665568]
[1744825472224,7.92096035,127.11,127.09,0.05665568]
[1744825472910,0.05286035,127.11,127.09,0.05665568]
[1744825473511,0.05286035,127.11,127.09,7.92535568]
[1744825474816,0.05286035,127.11,127.09,0.05665568]
[1744825475921,0.05286035,127.11,127.03,4.1315]
[1744825476215,7.8694,127.09,127.03,4.1315]
[1744825476424,48.17499998,127.12,127.03,4.1315]
[1744825476621,51.1,127.14,126.89,416.12]
[1744825476622,48.17499998,127.06,126.89,416.12]
[1744825476819,0.0586454,126.99,126.96,48.17499998]
[1744825477023,51.12,127.05,126.96,48.22979198]
[1744825477221,51.12,127.05,126.98,48.17499998]
[1744825477419,566.46,127.06,127.0,48.17499998]
[1744825477619,566.46,127.06,127.01,8.5011]
[1744825477822,566.46,127.06,127.04,7.8718]
[1744825478026,566.51686934,127.06,127.04,7.93050548]
[1744825478216,566.51686934,127.06,127.04,0.05870548]
[1744825478419,566.51686934,127.06,127.04,7.93050548]
[1744825478619,566.51686934,127.06,127.04,0.05870548]
[1744825479526,574.38796934,127.06,127.04,0.05870548]
[1744825480224,7.8715,127.05,127.04,0.05870548]
[1744825480426,614.69186932,127.06,126.96,52.25559998]
[1744825480621,614.63499998,127.06,126.96,52.25559998]
[1744825481022,566.46,127.06,127.02,48.17499998]
[1744825481325,566.6,127.13,127.04,48.17499998]
[1744825481525,0.05226006,127.1,127.07,0.05444143]
[1744825482426,0.05226006,127.1,127.09,7.869]
[1744825482628,51.14,127.12,127.08,48.17499998]
[1744825482826,51.14,127.12,127.07,0.05444143]
[1744825483732,0.05808346,127.11,127.07,0.05444143]
[1744825484731,7.92618346,127.11,127.07,0.05444143]
[1744825484931,0.05808346,127.11,127.07,0.05444143]
[1744825485229,0.05808346,127.11,127.09,7.869]
[1744825485529,0.05808346,127.11,127.07,0.05444143]
[1744825486530,7.92608346,127.11,127.08,7.8693]
[1744825486730,0.05808346,127.11,127.07,0.05444143]
[1744825487332,0.05808346,127.11,127.1,7.8684]
[1744825487531,0.05808346,127.11,127.07,0.05444143]
[1744825487835,0.05808346,127.11,127.09,7.8687]
[1744825488031,0.05808346,127.11,127.07,0.05444143]
[1744825488239,0.05808346,127.11,127.08,48.17499998]
[1744825488432,0.05808346,127.11,127.1,7.8684]
[1744825488736,0.05808346,127.11,127.07,0.05444143]
[1744825488939,49.6,127.1,127.07,0.05444143]
[1744825489237,3.34974471,127.09,127.03,4.3818]
[1744825489529,49.6,127.08,127.03,4.3818]
[1744825489837,3.34974471,127.07,127.04,7.8717]
[1744825490136,3.34974471,127.07,127.0,52.45929998]
[1744825490335,0.05753361,127.07,127.04,7.92835202]
[1744825490534,3.41026889,127.07,127.04,0.05665202]
[1744825490941,7.8712,127.06,127.04,0.05665202]
[1744825491142,3.35195131,127.05,127.04,0.05665202]
[1744825491339,3.35195131,127.05,126.98,4.2999]
[1744825491532,52.95195131,127.04,126.98,4.2999]
[1744825491738,3.35195131,127.03,126.98,4.2999]
[1744825492037,3.35195131,127.03,127.01,7.8734]
[1744825492239,0.05309039,127.03,127.01,0.05259969]
[1744825492437,566.64,127.09,127.01,48.22759967]
[1744825492643,52.95177809,127.08,127.01,48.17499998]
[1744825492839,3.35177809,127.07,127.04,7.8716]
[1744825493140,3.35177809,127.07,127.03,48.17499998]
[1744825493337,566.64,127.09,127.05,48.17499998]
[1744825493541,49.6,127.13,127.07,48.17499998]
[1744825493742,3.3532116,127.12,127.07,52.52729998]
[1744825493936,49.6,127.13,127.07,52.52729998]
[1744825494142,49.6,127.13,127.09,48.17499998]
[1744825494337,49.6,127.13,127.11,7.8674]
[1744825494835,3.3516892,127.12,127.11,7.92366637]
[1744825495038,3.35201709,127.12,127.11,0.05626637]
[1744825495237,3.35201709,127.12,127.04,48.17499998]
[1744825495438,7.8687,127.1,127.04,48.17499998]
[1744825495843,49.6,127.13,127.04,48.17499998]
[1744825496141,3.351254,127.12,127.06,48.17499998]
[1744825496343,49.6,127.15,127.08,48.17499998]
[1744825496537,3.35058785,127.14,127.08,48.17499998]
[1744825496740,3.35058785,127.14,127.1,48.17499998]
[1744825496941,63.89209998,127.26,127.12,48.17499998]
[1744825497137,63.89209998,127.26,127.17,7.8636]
[1744825497138,7.8619,127.21,127.17,7.8636]
[1744825497344,566.6,127.26,127.2,48.17499998]
[1744825497545,566.6,127.26,127.18,48.17499998]
[1744825497745,7.8607,127.23,127.22,0.05469817]
[1744825497951,0.05795389,127.24,127.21,0.05889391]
[1744825498153,0.0522483,127.24,127.21,0.05241544]
[1744825498552,49.6,127.23,127.21,0.05241544]
[1744825498953,7.861,127.22,127.21,0.05241544]
[1744825499648,49.6,127.23,127.13,4.2738]
[1744825499649,97.77499998,127.23,127.13,4.2738]
[1744825500053,49.6,127.23,127.14,48.17499998]
[1744825500248,49.6,127.23,127.16,48.17499998]
[1744825500648,0.05447849,127.21,127.18,0.05496331]
[1744825501153,7.8662,127.14,127.1,7.8683]
[1744825501342,49.6,127.16,127.09,4.22]
[1744825501543,49.6,127.17,127.12,48.17499998]
[1744825501748,49.6,127.2,127.12,48.17499998]
[1744825501950,48.17499998,127.19,127.09,4.22]
[1744825502252,7.8647,127.16,127.15,0.04962774]
[1744825502459,49.6,127.16,127.06,48.17499998]
[1744825502849,49.6,127.16,127.08,48.17499998]
[1744825503155,7.865,127.16,127.12,7.8668]
[1744825503451,0.05871502,127.15,127.13,0.05421598]
[1744825503656,7.8676,127.12,127.06,48.17499998]
[1744825503857,0.05434617,127.1,127.08,0.05556593]
[1744825504057,0.05989865,127.1,127.08,0.0519175]
[1744825505957,7.869,127.09,127.08,0.0519175]
[1744825506154,0.05989865,127.1,127.08,0.0519175]
[1744825506754,0.05989865,127.1,127.09,7.869]
[1744825506954,4.281,127.21,127.1,48.17499998]
[1744825507155,53.881,127.21,127.12,48.17499998]
[1744825507459,48.17499998,127.2,127.09,4.4087]
[1744825507654,48.17499998,127.18,127.07,8.2596]
[1744825507855,0.05131523,127.14,127.11,0.0543678]
[1744825508557,4.281,127.21,127.11,0.0543678]
[1744825508756,49.6,127.2,127.1,48.17499998]
[1744825508952,3.25083398,127.19,127.15,7.8649]
[1744825509153,3.25083398,127.19,127.07,8.2596]
[1744825509354,48.17499998,127.18,127.07,56.43459998]
[1744825509552,48.17499998,127.12,127.11,0.05290238]
[1744825509761,51.42583396,127.12,127.01,8.3957]
[1744825509958,7.8681,127.11,127.07,7.8702]
[1744825510261,0.05281698,127.09,127.06,0.05111377]
[1744825510960,3.30204148,127.09,127.06,0.05111377]
[1744825511561,0.05281698,127.09,127.06,0.05111377]
[1744825511959,48.2375,127.16,127.06,48.22611375]
[1744825512154,614.54,127.2,127.1,48.17499998]
[1744825512460,3.25062714,127.19,127.12,48.17499998]
[1744825512761,7.8638,127.18,127.1,48.17499998]
[1744825512954,3.25161991,127.17,127.09,4.2719]
[1744825513261,48.17499998,127.11,127.01,48.1]
[1744825513456,3.25161991,127.1,127.02,4.2719]
[1744825513656,7.8701,127.08,127.04,7.8719]
[1744825513958,7.8701,127.08,127.02,4.2719]
[1744825514159,0.05517826,127.06,127.04,0.05790029]
[1744825514357,3.30312132,127.06,127.04,0.05790029]
[1744825514558,0.05221104,127.06,127.04,0.05790029]
[1744825515265,7.92351104,127.06,127.04,0.05790029]
[1744825515457,48.15221104,127.06,127.04,0.05790029]
[1744825515660,48.15221104,127.06,126.97,4.0435]
[1744825515861,3.25014784,127.05,127.01,7.8737]
[1744825516360,7.8735,127.02,126.97,4.0435]
[1744825516558,48.17499998,127.05,126.97,4.0435]
[1744825516758,0.05577923,127.01,126.99,7.8748]
[1744825516955,0.05577923,127.01,126.99,7.92899114]
[1744825517156,48.23077921,127.01,126.9,9.23294835]
[1744825517357,48.17499998,126.99,126.9,4.0745]
[1744825517560,3.24919003,126.98,126.9,4.0745]
[1744825517755,3.24919003,126.98,126.88,8.3007]
[1744825517756,48.17499998,126.97,126.88,8.3007]
[1744825517956,48.17499998,126.92,126.85,13.48464835]
[1744825518264,48.12,126.91,126.85,9.23294835]
[1744825518565,0.06003117,126.9,126.87,0.05463868]
[1744825519460,7.882,126.88,126.87,0.05463868]
[1744825519764,3.22451408,126.88,126.85,9.23294835]
[1744825519963,48.17499998,126.86,126.84,27.69884505]
[1744825520155,48.14,126.85,126.84,27.69884505]
[1744825520360,56.0243,126.85,126.75,60.49939998]
[1744825520664,0.05233085,126.81,126.79,0.05672572]
[1744825520958,0.05233085,126.81,126.69,374.21606308]
[1744825521165,48.17499998,126.82,126.71,48.17499998]
[1744825521359,48.17499998,126.82,126.7,48.17499998]
[1744825521866,48.17499998,126.8,126.7,48.17499998]
[1744825522060,0.05199296,126.76,126.74,0.05049956]
[1744825522253,48.16,126.86,126.74,48.23467161]
[1744825522455,7.8822,126.88,126.82,7.8857]
[1744825522765,48.17499998,126.89,126.75,8.2655]
[1744825523065,7.8827,126.87,126.79,48.17499998]
[1744825523365,0.05218529,126.84,126.82,0.05460681]
[1744825525359,0.05218529,126.84,126.83,7.8852]
[1744825525565,1.57629255,126.88,126.82,56.10960679]
[1744825525766,567.4,126.97,126.86,48.17499998]
[1744825526064,48.18,126.98,126.89,48.17499998]
[1744825526264,48.18,126.98,126.91,48.17499998]
[1744825526464,0.05567737,126.96,126.93,48.23239606]
[1744825526864,48.18,127.02,126.93,48.23239606]
[1744825527064,48.18,127.02,126.96,7.8769]
[1744825527265,48.18,127.02,126.95,48.17499998]
[1744825527479,7.871,127.06,127.01,7.8739]
[1744825527767,48.18,127.09,127.01,48.17499998]
[1744825527966,0.05444157,127.06,127.04,0.05713492]
[1744825528962,48.22944155,127.06,126.98,4.3577]
[1744825529162,48.17499998,127.06,126.98,4.3577]
[1744825529359,48.17499998,127.0,126.88,48.17499998]
[1744825529562,48.18,126.99,126.9,48.17499998]
[1744825529765,48.18,126.99,126.95,7.8776]
[1744825530063,0.05405785,126.98,126.96,0.05373444]
[1744825530263,0.05400785,126.98,126.97,7.8765]
[1744825530459,48.18,127.04,126.96,48.22761396]
[1744825530658,48.18,127.04,126.94,48.17499998]
[1744825530869,48.17499998,127.02,126.92,48.17499998]
[1744825531466,48.22679275,126.98,126.89,4.3577]
[1744825531669,48.16,126.97,126.89,4.3577]
[1744825531969,48.17499998,126.96,126.86,48.17499998]
[1744825532469,48.17499998,126.96,126.85,4.0169]
[1744825532665,0.06027145,126.92,126.9,0.05656912]
[1744825532871,96.39527143,126.92,126.84,3.9986]
[1744825533166,48.17499998,126.9,126.79,52.2083]
[1744825533564,48.17499998,126.88,126.79,4.0483]
[1744825533763,48.18,126.87,126.79,4.0483]
[1744825534068,7.8852,126.83,126.77,7.8883]
[1744825534268,48.18,126.87,126.77,48.17499998]
[1744825534572,7.8833,126.86,126.81,7.886]
[1744825534870,48.18,126.87,126.77,48.17499998]
[1744825535170,0.06049458,126.83,126.81,0.05711279]
[1744825536365,0.06049458,126.83,126.82,7.8858]
[1744825536566,48.18,126.91,126.83,48.17499998]
[1744825536771,48.18,126.95,126.85,48.17499998]
[1744825537461,7.93592998,126.91,126.86,7.8831]
[1744825537666,0.05522998,126.91,126.89,0.05227675]
[1744825537864,0.05605619,126.91,126.89,0.05343146]
[1744825538069,96.35499998,126.9,126.77,100.35459998]
[1744825538272,48.17499998,126.88,126.77,100.35459998]
[1744825538468,56.0612,126.9,126.85,7.8839]
[1744825538669,48.18,126.9,126.83,48.17499998]
[1744825539067,48.17499998,126.94,126.85,48.22697546]
[1744825539068,0.05952256,126.88,126.85,48.22697546]
[1744825539270,48.18,126.94,126.85,48.17499998]
[1744825539465,48.18,126.94,126.83,48.17499998]
[1744825539672,48.18,126.94,126.87,7.8826]
[1744825540067,48.18,126.94,126.85,48.17499998]
[1744825540367,0.05295411,126.92,126.89,0.05507856]
[1744825540570,0.04994881,126.92,126.89,0.05153997]
[1744825540770,7.8802,126.91,126.89,0.05153997]
[1744825540969,0.04994881,126.92,126.83,4.1064]
[1744825541165,7.8809,126.9,126.83,4.1064]
[1744825541370,48.17499998,126.91,126.83,4.1064]
[1744825541567,48.17499998,126.93,126.83,4.1064]
[1744825541771,7.8812,126.9,126.85,7.8834]
[1744825541972,48.17499998,126.93,126.86,0.06009646]
[1744825542168,0.05605304,126.89,126.86,0.06009646]
[1744825542372,48.17499998,126.87,126.77,8.2424]
[1744825543175,7.8851,126.84,126.79,7.8874]
[1744825543371,0.05699197,126.83,126.8,0.05067958]
[1744825543573,0.05699197,126.83,126.73,47.1]
[1744825543574,47.1,126.82,126.73,47.1]
[1744825544171,7.8868,126.81,126.73,47.1]
[1744825544381,47.1,126.82,126.73,95.27499998]